[Event "CIS Master Groups 2024"]
[Site "Vasto"]
[Date "2024.04.14"]
[Round "11.11"]
[White "Bertagnolli, Alexander"]
[Black "Damia, Angelo"]
[Result "1-0"]
[ECO "A45"]
[WhiteElo "2333"]
[BlackElo "2234"]
[Annotator "TA"]
[PlyCount "95"]
[EventDate "2024.04.07"]
[EventType "team-tourn"]
[EventCountry "ITA"]
[SourceTitle "playchess.com"]
[Source "ChessBase"]
[SourceQuality "1"]
[TimeControl "40/5400+30:900+30"]

{[%evp 9,95,-25,15,0,37,27,31,30,35,-8,-8,-14,-11,-3,0,-2,-1,-40,-20,-39,-23,-25,-15,-25,0,-16,-5,-21,-15,-27,-20,-28,-20,-20,0,0,0,0,0,-8,0,0,0,0,10,0,33,29,25,25,29,21,18,22,23,19,22,23,171,160,240,268,285,302,284,339,356,324,359,337,257,257,1125,979,1216,1161,1313,1202,771,481,380,173,652,645,29975,29977,29984,29985]} 1. d4 {[%emt 0:00:03]} Nf6 {[%emt 0:00:09]} 2. Bg5 {[%emt 0:00:12]} e6 {[%emt 0:01:01]} 3. e4 {[%emt 0:00:08]} c5 {[%emt 0:00:07]} 4. c3 {[%emt 0:05:07]} cxd4 {[%emt 0:06:06]} 5. Bxf6 {[%emt 0:02:50]} gxf6 {[%emt 0:02:15]} 6. cxd4 {[%emt 0:00:37]} d5 {[%emt 0:07:49]} 7. exd5 {[%emt 0:01:15]} Qxd5 {[%emt 0:00:10]} 8. Nc3 {[%emt 0:00:15] White is slightly better.} Bb4 {[%emt 0:02:43]} 9. Qa4+ {[%emt 0:21:39]} Nc6 {[%emt 0:00:07][%cal Bb8c6,Bc6b4,Bb4d5,Bd5b6][%mdl 32]} 10. Qxb4 {[%emt 0:00:07]} Nxb4 {[%emt 0:00:11]} 11. Nxd5 {[%emt 0:00:01]} Nxd5 {[%emt 0:14:08]} 12. Bc4 {[%emt 0:03:19]} Nb6 {[%emt 0:00:11]} 13. Bb3 {[%emt 0:01:18]} Bd7 {[%emt 0:00:02]} 14. Ne2 {[%emt 0:01:38]} Bc6 {[%emt 0:08:19]} 15. f3 {[%emt 0:00:57]} Rd8 {[%emt 0:00:56]} 16. Kf2 {[%emt 0:01:11]} Ke7 {[%emt 0:00:52]} 17. Rhd1 {[%emt 0:01:12]} Rd6 {[%emt 0:00:34]} 18. Rd2 {[%emt 0:04:22]} Rhd8 {[%emt 0:00:14]} 19. Rad1 {[%emt 0:00:32]} Bd5 {[%emt 0:06:13]} 20. Bxd5 {[%emt 0:04:25]} Nxd5 {[%emt 0:04:39]} 21. Rc1 {[%emt 0:02:00]} Nb4 {[%emt 0:00:12]} 22. Rc7+ {[%emt 0:01:24]} R6d7 {[%emt 0:00:23]} 23. Rxd7+ {[%emt 0:04:25]} Rxd7 $11 {[%emt 0:00:11][%mdl 4096] Endgame. KRN-KRN} 24. a3 {[%emt 0:00:26]} Nc6 {[%emt 0:04:22]} 25. Ke3 {[%emt 0:01:49]} Na5 {[%emt 0:02:35]} 26. Rc2 {[%emt 0:01:02] Prevents Nc4+.} b5 {[%emt 0:00:20]} 27. Kd3 {[%emt 0:14:12]} e5 {[%emt 0:07:30]} 28. Rc5 {[%emt 0:07:18]} a6 {[%emt 0:01:16]} 29. Kc3 {[%emt 0:00:50] Against Nb3} Kd6 {[%emt 0:07:06] ...exd4+ is the strong threat.} 30. Rc8 {[%emt 0:03:25]} Rc7+ {[%emt 0:08:18]} 31. Rxc7 {[%emt 0:00:05]} Kxc7 {[%emt 0:00:02] KN-KN} 32. Ng3 {[%emt 0:03:27]} Nc4 {[%emt 0:06:54]} 33. Ne4 {[%emt 0:03:39]} Ne3 {[%emt 0:06:12] This move loses the game for Black.} (33... f5 $11 {and Black has nothing to worry.} 34. Ng5 exd4+ 35. Kxd4 Nxb2) 34. Nxf6 $18 {[%emt 0:00:37]} Nd1+ {[%emt 0:02:35]} (34... Kd6 $16 35. g3 (35. Nxh7 Nxg2 36. Ng5 f6 $16) 35... Nd1+ 36. Kc2 Ne3+ 37. Kd3 exd4 38. Kxd4 Nf1 39. Ne4+ (39. Nxh7 Nxh2 40. Ng5 Ke7 $18) 39... Ke7) 35. Kc2 {[%emt 0:00:07]} Ne3+ {[%emt 0:00:04]} 36. Kd3 {[%emt 0:00:50]} exd4 {[%emt 0:01:26]} 37. g4 {[%emt 0:01:56]} (37. Kxd4 Nxg2 38. Nxh7 Kd6 $18) 37... Nc4 {[%emt 0:01:24]} 38. Kxd4 {[%emt 0:00:57]} ({Weaker is} 38. Nxh7 Ne5+ 39. Ke4 (39. Kxd4 Nxf3+ 40. Ke4 Nxh2 $16) 39... d3 $16) 38... Nxb2 {[%emt 0:00:53]} 39. Nxh7 {[%emt 0:00:16] aiming for h4.} Nc4 {[%emt 0:00:01]} 40. h4 {[%emt 0:01:13] And now Ng5 would win.} Nxa3 $2 {[%emt 0:00:29] [#]} (40... Kd6 41. Ng5 Ke7) 41. Ng5 $1 {[%emt 0:16:41]} Kd7 {[%emt 0:05:19]} 42. Nxf7 {[%emt 0:00:00]} Nc2+ {[%emt 0:00:55]} 43. Kd3 {[%emt 0:00:00]} Nb4+ {[%emt 0:03:23]} 44. Kc3 {[%emt 0:00:00]} a5 {[%emt 0:00:01]} 45. h5 {[%emt 0:00:00]} (45. Ne5+ $142 Ke6 46. Nd3) 45... Ke7 $2 {[%emt 0:00:44]} (45... Ke6 46. Ng5+ Ke5) 46. Ne5 {[%emt 0:00:00]} Kf6 {[%emt 0:01:49] [#]} 47. h6 $1 {[%emt 0:00:00]} Nd5+ {[%emt 0:00:22]} (47... Kxe5 48. h7) 48. Kd4 {[%emt 0:00:00] Weighted Error Value: White=0.17 (very precise) /Black=0.63.  Mistake:       	---       	Black=4      Inaccurate:     	White=2     	Black=3      OK:         	White=17    	Black=7      Best:        	White=5     	Black=1      Strong:       	White=1     	---} 1-0

[Event "CIS Master Groups 2024"]
[Site "Vasto"]
[Date "2024.04.14"]
[Round "11.12"]
[White "Stromboli, Carlo"]
[Black "Mazzilli, Piero"]
[Result "0-1"]
[ECO "B55"]
[WhiteElo "2192"]
[BlackElo "2311"]
[Annotator "TA"]
[PlyCount "77"]
[EventDate "2024.04.07"]
[EventType "team-tourn"]
[EventCountry "ITA"]
[SourceTitle "playchess.com"]
[Source "ChessBase"]
[SourceQuality "1"]
[TimeControl "40/5400+30:900+30"]

{[%evp 9,77,0,0,0,10,-5,26,21,14,21,22,0,27,0,35,23,29,22,43,43,40,39,34,29,41,23,22,18,27,16,25,23,29,0,0,0,0,12,13,0,0,0,35,0,0,0,0,-277,-276,-485,-453,-464,-480,-523,-523,-530,-515,-572,-562,-554,-453,-470,-407,-387,-391,-512,-510,-29993,-542,-869]} 1. e4 {[%emt 0:07:46]} c5 {[%emt 0:00:05]} 2. Nf3 {[%emt 0:00:36]} d6 {[%emt 0:00:06]} 3. d4 {[%emt 0:01:28]} cxd4 {[%emt 0:00:03]} 4. Nxd4 {[%emt 0:02:14]} Nf6 {[%emt 0:00:02]} 5. Bd3 {[%emt 0:02:38]} Nc6 {[%emt 0:01:57]} 6. Ne2 {[%emt 0:06:37]} g6 {[%emt 0:08:08]} 7. c4 {[%emt 0:02:33]} Bg7 {[%emt 0:00:24]} 8. Nbc3 {[%emt 0:00:28] White has an edge.} O-O {[%emt 0:00:42]} 9. O-O {[%emt 0:02:18]} a6 {[%emt 0:09:03]} 10. h3 {[%emt 0:04:41]} Bd7 {[%emt 0:05:45]} 11. Be3 {[%emt 0:04:32]} Rb8 {[%emt 0:13:26]} (11... Ne5 $5) 12. b3 {[%emt 0:20:46]} Nb4 {[%emt 0:18:03]} 13. a4 {[%emt 0:13:32]} a5 {[%emt 0:08:36]} 14. Qd2 {[%emt 0:06:11]} Bc6 {[%emt 0:02:12]} 15. Rad1 {[%emt 0:07:56]} Nd7 {[%emt 0:03:13]} 16. Nd5 {[%emt 0:07:29]} Bxd5 {[%emt 0:02:51]} 17. exd5 {[%emt 0:00:57]} Nc5 {[%emt 0:02:56]} 18. Bc2 {[%emt 0:01:54]} Qb6 {[%emt 0:00:45]} 19. Rb1 {[%emt 0:00:58]} Rbd8 {[%emt 0:06:57]} 20. Nd4 {[%emt 0:00:43]} Rfe8 {[%emt 0:03:11]} 21. Rfe1 {[%emt 0:01:16][%cal Oc2f5]} e5 {[%emt 0:01:52]} 22. dxe6 {[%emt 0:00:44]} fxe6 {[%emt 0:00:03]} 23. Nb5 {[%emt 0:00:54]} d5 {[%emt 0:00:41]} 24. cxd5 {[%emt 0:00:51]} exd5 {[%emt 0:04:45]} 25. Bg5 {[%emt 0:01:51]} Rc8 {[%emt 0:00:56] White must now prevent ...Ne6.} 26. Rxe8+ {[%emt 0:00:55]} Rxe8 {[%emt 0:00:01]} 27. Rd1 {[%emt 0:00:02]} Ne6 {[%emt 0:02:11] Strongly threatening ...Nxg5. Excellent horsemanship.} 28. Re1 $2 {[%emt 0:00:35][%mdl 8192] [#]} (28. h4 $11 {and White has nothing to worry.}) 28... Qc6 $1 $19 {[%emt 0:00:42]} 29. Bb1 {[%emt 0:00:07]} (29. Rxe6 Qxe6 30. Bd1) 29... Nxg5 {[%emt 0:00:13]} 30. Rxe8+ {[%emt 0:01:19]} Qxe8 {[%emt 0:00:03]} 31. Qxg5 {[%emt 0:00:34]} Qe1+ {[%emt 0:06:08]} 32. Kh2 Qxb1 {[%emt 0:00:00]} 33. Qd8+ {[%emt 0:00:02]} Bf8 {[%emt 0:00:00]} 34. Qxa5 {[%emt 0:00:42]} Qxb3 {[%emt 0:00:00]} 35. Qa7 {[%emt 0:00:03]} d4 {[%emt 0:00:00]} 36. Qxd4 {[%emt 0:00:13]} Qd5 {[%emt 0:00:00] Dodges Nd6} ({Worse is} 36... Qxa4 37. Qc4+ Kg7 38. Qd4+ Kf7 (38... Kg8 39. Qc4+ Kg7 40. Qd4+ Kf7 41. Qf4+ Kg8 42. Qc4+ $11) 39. Qf4+ Kg7 (39... Kg8 40. Qc4+ Kg7 41. Qc7+ Kh8 42. Qe5+ Kg8 43. Qe6+ Kg7 44. Qe5+ Kg8 45. Qe6+ Kg7 46. Qd7+ Kh6 47. Qd2+ Kg7 48. Qc3+ Kf7 49. Qc4+ Ke7 50. Qc5+ Kf7 51. Qc4+ Kf6 52. Qd4+ Ke7 53. Qd6+ Kf7 54. Qf4+ Kg8 55. Qc4+ $11) 40. Qd4+ Kg8 41. Qc4+ Kg7 42. Qd4+ $11) 37. Qb6 {[%emt 0:01:15]} Nd3 {[%emt 0:00:00] ( -> ...Ne1)} 38. Kg1 {[%emt 0:00:00] [#]} (38. Qd4 $19 Qxd4 39. Nxd4) 38... Bc5 {[%emt 0:00:00]} (38... Nf4 $142 39. Qe6+ Qxe6 (39... Nxe6 {gets mated.} 40. Nc3 Qd2 41. g3 Qxc3 42. h4 Qf3 43. Kf1 Nd4 44. Kg1 Ne2+ 45. Kf1 Nxg3+ 46. Kg1 Qh1#) 40. Kh2 Qe4 41. Kg3 Ne2+ (41... Qxg2+ $2 42. Kxf4 Bh6+ 43. Ke5 $19) 42. Kh2 Qf4+ (42... Qxa4 43. g3 Qe4 44. Nc3 Nxc3 45. h4 Qf3 46. Kh3 Qxf2 47. h5 Ne4 48. hxg6 Qxg3#) 43. Kh1 Qc1+ 44. Kh2 Qg1#) 39. Qf6 {[%emt 0:02:20] Weighted Error Value: White=0.51/Black=0.28 (precise) .  Loses game:     	White=1     	---        Mistake:       	White=2     	Black=1      Inaccurate:     	White=5     	Black=3      OK:         	White=9     	Black=14     Best:        	---       	Black=3      Strong:       	---       	Black=1} 0-1

[Event "CIS Master Groups 2024"]
[Site "Vasto"]
[Date "2024.04.14"]
[Round "11.13"]
[White "Glek, Igor"]
[Black "Livaic, Leon"]
[Result "1/2-1/2"]
[ECO "B90"]
[WhiteElo "2409"]
[BlackElo "2549"]
[Annotator "TA"]
[PlyCount "39"]
[EventDate "2024.04.07"]
[EventType "team-tourn"]
[EventCountry "ITA"]
[SourceTitle "playchess.com"]
[Source "ChessBase"]
[SourceQuality "1"]
[TimeControl "40/5400+30:900+30"]

{[%evp 16,39,11,28,30,0,0,0,0,0,0,0,7,0,0,0,18,0,26,0,0,0,0,0,0,0]} 1. e4 {[%emt 0:03:14]} c5 {[%emt 0:00:13]} 2. Nf3 {[%emt 0:00:04]} d6 {[%emt 0:00:08]} 3. d4 {[%emt 0:00:43]} cxd4 {[%emt 0:00:06]} 4. Nxd4 {[%emt 0:00:02]} Nf6 {[%emt 0:00:07]} 5. Nc3 {[%emt 0:00:09]} a6 {[%emt 0:01:01]} 6. a4 {[%emt 0:00:05]} e5 {[%emt 0:00:45]} 7. Nf3 {[%emt 0:00:04]} Qc7 {[%emt 0:00:31]} 8. Bg5 {[%emt 0:00:08]} Nbd7 {[%emt 0:00:14]} 9. Nd2 {[%emt 0:01:11]} h6 {[%emt 0:01:30]} 10. Bxf6 {[%emt 0:07:02]} Nxf6 {[%emt 0:00:05]} 11. Bc4 {[%emt 0:00:45]} Be6 {[%emt 0:00:57]} 12. Qe2 {[%emt 0:03:03]} Rc8 {[%emt 0:01:10]} 13. Bb3 {[%emt 0:00:08]} Be7 {[%emt 0:01:10]} 14. O-O {[%emt 0:01:46]} O-O {[%emt 0:00:10]} 15. Rfd1 {[%emt 0:01:11]} Qc5 {[%emt 0:06:32]} 16. h3 {[%emt 0:01:58]} Rfd8 {[%emt 0:07:34]} 17. a5 {[%emt 0:04:34]} d5 {[%emt 0:06:35] The position is equal.} 18. exd5 {[%emt 0:17:35]} Nxd5 {[%emt 0:00:34]} 19. Nxd5 {[%emt 0:00:16]} Bxd5 {[%emt 0:00:06] This pair of bishops is nice.} 20. Ne4 {[%emt 0:00:58] Not much happened in this game.   Weighted Error Value: White=0.08 (flawless) /Black=0.06 (flawless) .  Inaccurate:     	White=2     	Black=1      OK:         	White=7     	Black=4} 1/2-1/2

[Event "CIS Master Groups 2024"]
[Site "Vasto"]
[Date "2024.04.14"]
[Round "11.15"]
[White "Sedina, Elena"]
[Black "Casadio, Niccolo`"]
[Result "0-1"]
[ECO "B53"]
[WhiteElo "2190"]
[BlackElo "2309"]
[Annotator "TA"]
[PlyCount "90"]
[EventDate "2024.04.07"]
[EventType "team-tourn"]
[EventCountry "ITA"]
[SourceTitle "playchess.com"]
[Source "ChessBase"]
[SourceQuality "1"]
[TimeControl "40/5400+30:900+30"]

{[%evp 9,90,19,14,0,1,-12,0,0,0,0,22,0,5,0,12,-18,-16,-50,-19,-43,-25,-34,-16,-16,0,-35,4,-20,-23,-58,-62,-67,-62,-56,-60,-53,-58,-70,-45,-62,-33,-29,-33,-31,-4,-116,-110,-125,-47,-191,-167,-181,-158,-332,-334,-394,-382,-382,-389,-581,-201,-348,-346,-345,-345,-854,-852,-851,-846,-2278,-2281,-2174,-2175,-29988,-29989,-29989,-29990,-29992,-29993,-29995,-29995,-29997,-346]} 1. e4 {[%emt 0:02:59]} c5 {[%emt 0:00:07]} 2. Nf3 {[%emt 0:00:12]} d6 {[%emt 0:00:06]} 3. d4 {[%emt 0:01:01]} cxd4 {[%emt 0:00:06]} 4. Qxd4 {[%emt 0:00:12]} Nf6 {[%emt 0:01:25]} 5. Be2 {[%emt 0:00:53]} g6 {[%emt 0:00:05]} 6. O-O {[%emt 0:00:51]} Bg7 {[%emt 0:00:03]} 7. h3 {[%emt 0:00:46]} O-O {[%emt 0:00:16]} 8. Rd1 {[%emt 0:01:28] The position is equal.} Nc6 {[%emt 0:00:05]} 9. Qe3 {[%emt 0:00:11]} Be6 {[%emt 0:00:10]} 10. Ng5 {[%emt 0:22:12]} Bd7 {[%emt 0:00:30]} 11. c3 {[%emt 0:02:14]} Rc8 {[%emt 0:07:10]} 12. Nd2 {[%emt 0:03:47]} Qc7 {[%emt 0:04:22]} 13. Nb3 {[%emt 0:08:39]} a6 {[%emt 0:02:57]} 14. Nf3 {[%emt 0:02:56]} Rfd8 {[%emt 0:02:41]} 15. Bd2 {[%emt 0:09:02]} b5 {[%emt 0:02:57]} 16. c4 {[%emt 0:21:21]} Qb7 {[%emt 0:04:58]} 17. Na5 {[%emt 0:04:30]} Qa8 {[%emt 0:03:24]} 18. Bf1 {[%emt 0:04:45]} Re8 {[%emt 0:11:00]} 19. Nxc6 {[%emt 0:05:19]} Bxc6 {[%emt 0:00:18]} 20. e5 {[%emt 0:00:46]} Ne4 {[%emt 0:02:06]} 21. cxb5 {[%emt 0:00:21]} Bxb5 {[%emt 0:02:05]} 22. Bxb5 {[%emt 0:01:26]} axb5 {[%emt 0:00:02]} 23. Re1 {[%emt 0:03:55]} d5 {[%emt 0:02:32] Black is more active.} 24. Bb4 {[%emt 0:00:56]} Rc4 {[%emt 0:00:22]} 25. a3 {[%emt 0:00:06]} e6 {[%emt 0:00:42]} 26. Rac1 {[%emt 0:01:44] Inhibits Rc2.} Rec8 {[%emt 0:00:47]} 27. Rxc4 {[%emt 0:00:04]} (27. b3 $11 {remains equal.} Rxc1 28. Rxc1) 27... bxc4 $17 {[%emt 0:02:36]} 28. Nd2 {[%emt 0:00:48]} Bxe5 {[%emt 0:02:21]} (28... Nxd2 $17 29. Qxd2 Bf8) 29. f3 {[%emt 0:00:18]} ({White must play} 29. Nxe4 $15 dxe4 30. Bc3) 29... Nxd2 $1 $19 {[%emt 0:00:05]} 30. Qxe5 {[%emt 0:00:15][%cal Ob4c3] aiming for Bc3!} Nb3 {[%emt 0:00:05]} 31. Qe3 $2 {[%emt 0:01:32] Now White is beyond hope.} (31. h4 $17) 31... d4 {[%emt 0:00:21]} 32. Qf2 {[%emt 0:00:19]} c3 {[%emt 0:03:56]} 33. Qc2 {[%emt 0:00:07]} Qd5 {[%emt 0:00:19] Threatens to win with ...d3.} 34. Rd1 {[%emt 0:00:40]} (34. bxc3 {was worth a try.} dxc3 35. Kh2) 34... Qc4 $2 {[%emt 0:00:49]} (34... d3 35. Rxd3 Qxd3 (35... Nd4 $2 36. Rxd4 Qxd4+ 37. Kh2 $17) 36. Qxd3 c2) 35. bxc3 {[%emt 0:00:03]} (35. Bd6 $142) 35... dxc3 {[%emt 0:01:31]} 36. Kh1 {[%emt 0:00:56]} e5 {[%emt 0:01:16]} (36... Nd4 37. Qxc3 Qxc3 38. Bxc3 Rxc3 39. Rxd4 $17) 37. Rd3 $2 {[%emt 0:00:55] [#]} (37. Bxc3 Nd4 (37... Qxc3 38. Rd8+ Kg7 39. Rxc8 $11) 38. Qe4 Qxc3 39. Qxe5) 37... Qxd3 $3 {[%emt 0:00:09][%mdl 512]} 38. Qxd3 {[%emt 0:00:19]} c2 {[%emt 0:00:03]} 39. Qxb3 {[%emt 0:00:18]} c1=Q+ {[%emt 0:00:08][%mdl 4096] Endgame. KQR-KQB} (39... c1=B $2 {loses.} 40. Bc3 $18) 40. Kh2 {[%emt 0:00:06]} Qf4+ {[%emt 0:00:59]} 41. Kg1 {[%emt 0:15:20]} Rc1+ {[%emt 0:15:06] Black mates.} 42. Kf2 {[%emt 0:00:05]} Qd4+ {[%emt 0:01:14]} 43. Kg3 {[%emt 0:00:00]} h5 {[%emt 0:00:00]} 44. h4 {[%emt 0:00:00]} Rh1 {[%emt 0:00:00][%csl Gh1][%cal Rd4h4]} 45. Be7 {[%emt 0:00:00]} Qf4+ {[%emt 0:00:00] Weighted Error Value: White=0.76/Black=0.18 (very precise) .  Loses game:     	White=1     	---        Mistake:       	White=5     	Black=2      Inaccurate:     	White=4     	Black=4      OK:         	White=5     	Black=12     Strong:       	---       	Black=1      Brilliant:      	---       	Black=1} 0-1

[Event "CIS Master Groups 2024"]
[Site "Vasto"]
[Date "2024.04.14"]
[Round "11.16"]
[White "Belli, Giorgio"]
[Black "Di Trapani, Davide"]
[Result "1-0"]
[ECO "C78"]
[WhiteElo "2109"]
[BlackElo "2161"]
[Annotator "TA"]
[PlyCount "61"]
[EventDate "2024.04.07"]
[EventType "team-tourn"]
[EventCountry "ITA"]
[SourceTitle "playchess.com"]
[Source "ChessBase"]
[SourceQuality "1"]
[TimeControl "40/5400+30:900+30"]

{[%evp 17,61,39,37,35,39,0,0,0,0,-26,-30,-27,-13,-19,-22,-21,-20,-16,-16,-37,-18,-14,-5,-51,0,18,56,80,110,31,28,37,360,343,464,258,470,455,2447,2447,2222,2095,1595,1489,29995,29996]} 1. e4 {[%emt 1:31:00]} e5 {[%emt 0:01:50]} 2. Nf3 {[%emt 0:00:00]} Nc6 {[%emt 0:00:03]} 3. Bb5 {[%emt 0:00:00]} a6 {[%emt 0:01:05]} 4. Ba4 {[%emt 0:00:00]} Nf6 {[%emt 0:00:07]} 5. O-O {[%emt 0:00:00]} b5 {[%emt 0:00:02]} 6. Bb3 {[%emt 0:00:00]} Bc5 {[%emt 0:00:05]} 7. c3 {[%emt 0:00:00]} d6 {[%emt 0:00:26]} 8. d4 {[%emt 0:00:00]} Bb6 {[%emt 0:00:05]} 9. a4 {[%emt 0:00:00]} Rb8 {[%emt 0:00:06]} 10. Qd3 {[%emt 0:00:00]} Bd7 {[%emt 0:01:04]} 11. Bg5 {[%emt 0:00:00]} h6 {[%emt 0:07:58]} 12. Bh4 {[%emt 0:00:00] The position is equal.} exd4 {[%emt 0:08:36]} 13. Nxd4 {[%emt 0:00:00]} (13. cxd4 $5 g5 14. Bg3 $15) 13... Ne5 {[%emt 0:10:06]} 14. Qe2 {[%emt 0:00:00][%cal Ra4b5]} Ng6 {[%emt 0:06:17]} 15. Bg3 {[%emt 0:00:00]} O-O {[%emt 0:02:32]} 16. Nd2 {[%emt 0:00:00]} Re8 {[%emt 0:06:27]} 17. a5 {[%emt 0:00:00]} Ba7 {[%emt 0:04:10][%cal Od6d5]} 18. Rfe1 {[%emt 0:00:00]} d5 {[%emt 0:13:43]} 19. e5 {[%emt 0:00:00]} c5 {[%emt 0:10:52]} 20. N4f3 {[%emt 0:00:00]} (20. Qf3 $11 Bg4 21. Nc6 Bxf3 22. Nxd8 Rbxd8 23. exf6) 20... Nh5 {[%emt 0:02:36]} ({Better is} 20... c4 $15 21. Bc2 Nh5) 21. Bxd5 $11 {[%emt 0:00:00][%cal Oe5e6]} Nxg3 {[%emt 0:00:09]} (21... c4 {seems wilder.} 22. e6 fxe6 23. Bxb8 exd5 24. Qxe8+ Bxe8 25. Bxa7 Nhf4) 22. hxg3 {[%emt 0:00:00]} (22. fxg3 c4+ 23. Kh1 Bf5 $15) 22... Bf5 {[%emt 0:04:16]} 23. Be4 {[%emt 0:00:00]} (23. c4 $16) 23... Bxe4 $1 $14 {[%emt 0:05:42]} 24. Qxe4 {[%emt 0:00:00]} Nxe5 $2 {[%emt 0:00:46][%mdl 8192] [#] Loses the game.} 25. Nxe5 $18 {[%emt 0:00:00]} Qxd2 {[%emt 0:00:15]} 26. Rad1 {[%emt 0:00:00]} (26. Qf3 $142) 26... Qxb2 $2 {[%emt 0:05:13]} (26... Qg5 27. Rd7 Rbd8 28. Rxa7 f6) 27. Qf5 {[%emt 0:00:00]} ({Less strong is} 27. Rd7 Qxc3 28. Re3 (28. Rxa7 Re6 $18) (28. Rxf7 $2 Rxe5 $19) 28... Qa1+ 29. Kh2 (29. Re1 Qa2 $18) 29... Re6 $18) 27... Qxc3 {[%emt 0:01:13]} (27... Qa2 $142 28. Nc6 Ra8 29. Nxa7 Qxa5 30. Qxc5 Qa2) 28. Qxf7+ {[%emt 0:00:00]} Kh7 {[%emt 0:00:12]} 29. Qg6+ {[%emt 0:00:00]} ({Inferior is} 29. Qxa7 Rxe5 30. Rxe5 Qxe5 $11) 29... Kg8 {[%emt 0:00:08]} 30. Re3 {[%emt 0:00:00] Black is weak on the light squares} ({Not} 30. Qxa6 Rxe5 31. Rxe5 Qxe5 $14) 30... Qxa5 {[%emt 0:03:37]} 31. Rd7 {[%emt 0:00:00][%csl LRa7,LRg7] Weighted Error Value: White=0.33/Black=0.66.  Loses game:     	---       	Black=1      Mistake:       	White=3     	Black=3      Inaccurate:     	White=2     	Black=3      OK:         	White=4     	Black=5      Best:        	White=2     	Black=2      Strong:       	---       	Black=1} 1-0

[Event "CIS Master Groups 2024"]
[Site "Vasto"]
[Date "2024.04.14"]
[Round "11.17"]
[White "Gueci, Tea"]
[Black "Costantino, Gaia"]
[Result "1-0"]
[ECO "C78"]
[WhiteElo "2205"]
[BlackElo "1854"]
[Annotator "TA"]
[PlyCount "79"]
[EventDate "2024.04.07"]
[EventType "team-tourn"]
[EventCountry "ITA"]
[SourceTitle "playchess.com"]
[Source "ChessBase"]
[SourceQuality "1"]
[TimeControl "40/5400+30:900+30"]

{[%evp 17,79,39,44,8,12,0,22,21,229,216,214,216,266,266,256,261,310,304,293,238,293,281,284,285,403,403,633,628,629,630,702,682,667,664,749,535,846,849,782,747,749,741,737,712,806,779,774,563,597,523,594,588,593,565,546,535,663,661,856,618,1748,1687,1184,1046]} 1. e4 {[%emt 0:03:02]} e5 {[%emt 0:00:06]} 2. Nf3 {[%emt 0:00:11]} Nc6 {[%emt 0:00:06]} 3. Bb5 {[%emt 0:00:04]} a6 {[%emt 0:00:10]} 4. Ba4 {[%emt 0:00:05]} Nf6 {[%emt 0:00:10]} 5. O-O {[%emt 0:00:05]} b5 {[%emt 0:00:26]} 6. Bb3 {[%emt 0:00:07]} Bc5 {[%emt 0:00:08][%cal Bf8c5,Bc5b6,Bb6a7][%mdl 32]} 7. a4 {[%emt 0:00:08]} Rb8 {[%emt 0:01:03]} 8. c3 {[%emt 0:00:11]} d6 {[%emt 0:01:26]} 9. d4 {[%emt 0:00:04]} Bb6 {[%emt 0:00:29]} 10. a5 {[%emt 0:00:07]} Ba7 {[%emt 0:02:44]} 11. h3 {[%emt 0:00:08]} O-O {[%emt 0:00:40]} 12. Be3 {[%emt 0:00:12] The position is equal.} Nd7 $2 {[%emt 0:13:08] [#] A mistake that costs the game.} (12... Nxe4 13. Bd5 exd4 14. cxd4) (12... exd4 $11 {and Black stays safe.} 13. cxd4 Nxe4) 13. d5 $1 $18 {[%emt 0:01:57]} Bxe3 {[%emt 0:09:56]} 14. dxc6 {[%emt 0:00:36]} Bxf2+ {[%emt 0:01:38]} 15. Rxf2 {[%emt 0:00:21]} Nc5 {[%emt 0:01:08]} 16. Bd5 {[%emt 0:02:34]} Ne6 {[%emt 0:05:57]} 17. g3 {[%emt 0:13:01]} Qe8 {[%emt 0:12:34]} 18. Nbd2 {[%emt 0:05:54]} h6 {[%emt 0:02:35]} 19. c4 {[%emt 0:04:06]} bxc4 {[%emt 0:07:18]} 20. Nxc4 {[%emt 0:00:17]} Nd8 {[%emt 0:01:51]} (20... Nc5 {was necessary.} 21. Ne3 Be6) 21. Nh4 {[%emt 0:05:11]} Kh7 {[%emt 0:06:43] [#]} (21... Nxc6 $142 22. Ng6 Ne7) 22. Nxd6 $1 {[%emt 0:00:47][%mdl 512] White is clearly winning.} cxd6 {[%emt 0:04:17]} 23. c7 {[%emt 0:00:03][%csl LRb8,LRd8]} Rb4 {[%emt 0:01:15]} 24. cxd8=Q {[%emt 0:01:02]} Qxd8 {[%emt 0:00:03]} 25. Bxf7 {[%emt 0:00:39]} Bxh3 {[%emt 0:04:39]} 26. Qf3 {[%emt 0:02:23]} Rb7 {[%emt 0:08:03]} 27. Bg6+ {[%emt 0:00:25]} Kg8 {[%emt 0:00:16] [#]} 28. Bh7+ $1 {[%emt 0:00:18][%mdl 512]} Kxh7 {[%emt 0:00:40]} 29. Qxf8 {[%emt 0:00:11]} Qg5 {[%emt 0:01:17]} 30. Kh2 {[%emt 0:01:28]} Rb3 {[%emt 0:03:50]} 31. Rg1 {[%emt 0:01:07]} (31. Kxh3 $2 Qxg3#) 31... Be6 {[%emt 0:01:48]} 32. Nf5 {[%emt 0:13:42]} Qh5+ {[%emt 0:03:03] [#]} 33. Kg2 $1 {[%emt 0:00:29]} Qg4 {[%emt 0:00:45] [#]} 34. Qxg7+ $1 {[%emt 0:01:11]} Qxg7 {[%emt 0:00:22]} 35. Nxg7 {[%emt 0:00:04]} Kxg7 {[%emt 0:00:09] KRR-KRB} 36. Rd1 {[%emt 0:00:10] Prevents Rd3} Bc4 {[%emt 0:01:37]} 37. Rxd6 {[%emt 0:01:18] Strongly threatening Rc2.} Re3 {[%emt 0:01:00]} 38. Rc2 {[%emt 0:01:26]} Bf7 {[%emt 0:02:00]} 39. Rc7 {[%emt 0:00:49]} Rxe4 {[%emt 0:00:39]} 40. Rdd7 {[%emt 0:00:10] Weighted Error Value: White=0.26 (precise) /Black=0.69.  Loses game:     	---       	Black=1      Mistake:       	---       	Black=2      OK:         	White=7     	Black=4      Best:        	White=1     	Black=1      Strong:       	White=1     	---        Brilliant:      	White=1     	---} 1-0